[Event "67th Mexican-ch Open 2022"]
[Site "Chihuahua"]
[Date "2022.04.13"]
[Round "1.1"]
[White "Cruz Gomez, Miguel Angel"]
[Black "Cori, Jorge"]
[Result "0-1"]
[ECO "B07"]
[WhiteElo "2028"]
[BlackElo "2650"]
[Annotator "TA"]
[PlyCount "76"]
[EventDate "2022.04.12"]
[EventType "swiss"]
[EventCountry "MEX"]
[SourceTitle "playchess.com"]
[Source "ChessBase"]
[SourceQuality "1"]
[TimeControl "5400+30"]

{[%evp 15,76,52,43,18,25,32,62,50,49,53,58,12,7,11,29,25,20,10,4,4,14,0,15,0,1,0,0,0,22,3,34,0,0,0,0,0,0,0,0,0,0,-22,-19,-52,-39,-40,-32,-257,-252,-323,-311,-320,-325,-313,-289,-351,-343,-362,-346,-374,-376,-570,-559]} 1. d4 {[%emt 0:10:02] Alvarez,Roberto Gabriel} Nf6 {[%emt 0:00:21]} 2. Bf4 {[%emt 0:00:15]} g6 {[%emt 0:00:32]} 3. Nc3 {[%emt 0:00:21]} Bg7 {[%emt 0:08:53]} 4. e4 {[%emt 0:01:22]} d6 {[%emt 0:00:06]} 5. Qd2 {[%emt 0:00:38]} O-O {[%emt 0:00:25]} 6. O-O-O {[%emt 0:00:49]} Nc6 {[%emt 0:00:44]} 7. Bh6 {[%emt 0:01:47]} e5 {[%emt 0:02:20]} 8. Bxg7 {[%emt 0:00:52]} Kxg7 {[%emt 0:00:05]} 9. Nge2 {[%emt 0:03:24] B07: Pirc Defence: Miscellaneous Systems.} Ng4 {[%emt 0:02:19]} 10. Qe1 {[%emt 0:00:52] [#]} exd4 $146 {[%emt 0:10:14]} ({Predecessor:} 10... Qf6 11. dxe5 Qxf2 12. exd6 Qxe1 13. Rxe1 cxd6 14. h3 Nf6 15. g4 Be6 16. Nf4 h6 {1-0 (51) Ederer,K (2196)-Keevil,P (2154) LSS email 2011 Telechess CBM 157 [Alvarez,Roberto Gabriel]}) 11. Nxd4 {[%emt 0:00:08] White is slightly better.} Nxd4 {[%emt 0:00:13]} 12. Rxd4 {[%emt 0:00:03]} Qg5+ {[%emt 0:08:02]} 13. Qd2 {[%emt 0:03:48]} (13. Kb1 $14) 13... Qxd2+ $11 {[%emt 0:00:25]} 14. Rxd2 {[%emt 0:00:02]} Be6 {[%emt 0:00:13]} 15. f3 {[%emt 0:02:55]} Nf6 {[%emt 0:00:17]} 16. g3 {[%emt 0:02:38]} a6 {[%emt 0:00:23]} 17. Bg2 {[%emt 0:01:07][%cal Bf1g2,Bg2f3,Bf3g4][%mdl 32]} b5 {[%emt 0:00:16]} 18. f4 {[%emt 0:01:12] [#] Hoping for e5.} Rae8 {[%emt 0:02:10]} 19. a3 {[%emt 0:06:10]} h5 {[%emt 0:04:21]} 20. h3 {[%emt 0:07:53]} Nd7 {[%emt 0:06:08][%cal Bf6d7,Bd7c5,Bc5e6,Be6g5][%mdl 32]} 21. Bf3 {[%emt 0:01:42]} f6 {[%emt 0:01:44]} 22. Rg2 {[%emt 0:10:34]} Bf7 {[%emt 0:03:25]} 23. g4 {[%emt 0:03:32]} hxg4 {[%emt 0:00:07]} 24. Bxg4 {[%emt 0:00:10]} Nc5 {[%emt 0:00:11]} 25. Bf3 {[%emt 0:00:30]} Rh8 {[%emt 0:00:25]} 26. h4 {[%emt 0:01:08]} Rh6 {[%emt 0:04:16]} 27. h5 {[%emt 0:03:37]} Ne6 {[%emt 0:10:30]} 28. Ne2 {[%emt 0:02:41]} Kf8 {[%emt 0:00:35]} 29. f5 {[%emt 0:02:20]} gxf5 {[%emt 0:01:00]} ({Much weaker is} 29... Ng5 30. fxg6 Bxg6 31. Rxg5 fxg5 32. hxg6 Rxh1+ 33. Bxh1 $11) 30. exf5 {[%emt 0:02:28]} Ng5 {[%emt 0:00:08]} 31. Bg4 {[%emt 0:00:06] Now White is beyond hope.} ({Better is} 31. Bb7 $15) 31... Bd5 $19 {[%emt 0:00:11]} 32. Rgg1 {[%emt 0:00:38]} Bxh1 {[%emt 0:00:11]} 33. Rxh1 {[%emt 0:00:02]} Re4 {[%emt 0:00:11] Prevents Nf4.} 34. Rg1 {[%emt 0:00:16]} Rh7 {[%emt 0:01:50]} 35. Kd2 {[%emt 0:00:15]} Rhe7 {[%emt 0:00:10]} 36. Nc3 {[%emt 0:02:05]} Rd4+ {[%emt 0:01:15]} 37. Kc1 {[%emt 0:00:02]} c5 {[%emt 0:01:35]} 38. Ne2 {[%emt 0:00:24] [#]} (38. b3 $142) 38... Rxg4 $1 {[%emt 0:00:07][%mdl 512] Weighted Error Value: White=0.41/Black=0.04 (flawless)} 0-1

[Event "67th Mexican-ch Open 2022"]
[Site "Chihuahua"]
[Date "2022.04.13"]
[Round "1.2"]
[White "Mareco, Sandro"]
[Black "Silva Hernandez, Jose Luis"]
[Result "1-0"]
[ECO "E95"]
[WhiteElo "2643"]
[BlackElo "2006"]
[Annotator "TA"]
[PlyCount "49"]
[EventDate "2022.04.12"]
[EventType "swiss"]
[EventCountry "MEX"]
[SourceTitle "playchess.com"]
[Source "ChessBase"]
[SourceQuality "1"]
[TimeControl "5400+30"]

{[%evp 23,49,59,62,56,147,145,137,135,208,235,247,226,275,259,376,392,374,382,390,369,377,376,354,380,1118,1053,1005,959]} 1. Nf3 {[%emt 0:00:17]} d6 {[%emt 0:00:47]} 2. d4 {[%emt 0:00:04]} g6 {[%emt 0:00:43]} 3. e4 {[%emt 0:00:06]} Bg7 {[%emt 0:00:09]} 4. c4 {[%emt 0:00:04]} Nf6 {[%emt 0:00:16]} 5. Nc3 {[%emt 0:00:04]} O-O {[%emt 0:00:13]} 6. Be2 {[%emt 0:00:03]} Na6 {[%emt 0:00:14]} 7. O-O {[%emt 0:00:12]} e5 {[%emt 0:00:13]} 8. Re1 {[%emt 0:00:07]} exd4 {[%emt 0:04:50]} 9. Nxd4 {[%emt 0:00:04]} Re8 {[%emt 0:00:07]} 10. Bf1 {[%emt 0:00:49]} Nc5 {[%emt 0:02:49]} 11. f3 {[%emt 0:00:12]} c6 {[%emt 0:09:14]} 12. Be3 {[%emt 0:00:17]} a5 {[%emt 0:05:31]} 13. b3 {[%emt 0:01:03] Prevents a4. E95: King's Indian: Classical: 7...Nbd7 8 Re1.} d5 {[%emt 0:04:41]} (13... h5 $14) 14. cxd5 $16 {[%emt 0:05:31]} cxd5 {[%emt 0:00:36] [#]} 15. Ndb5 $146 {[%emt 0:00:07][%csl LRc5,LRd5] White is clearly better.} ({Predecessor:} 15. exd5 Nxd5 16. Nxd5 Qxd5 17. Nb5 Qc6 18. Rc1 b6 19. Qd6 Qxd6 20. Nxd6 Rxe3 21. Rxe3 {0-1 (54) Kramer,H-Christoffel,M Zaandam/Wormerveer 1946}) 15... b6 {[%emt 0:00:53]} (15... Na6 $16 {was necessary.}) 16. exd5 $18 {[%emt 0:00:25][%cal Be4d5,Bd5d6][%mdl 32]} Bb7 {[%emt 0:19:32][%cal Rf6d5]} 17. d6 {[%emt 0:00:34]} Ne6 {[%emt 0:01:09]} 18. Rc1 {[%emt 0:01:03]} Nd7 {[%emt 0:01:10]} (18... Rc8 $142 19. Bc4 Rc6) 19. Nc7 {[%emt 0:07:00]} Nxc7 {[%emt 0:12:33]} 20. dxc7 {[%emt 0:00:03]} Qxc7 {[%emt 0:01:37]} 21. Nb5 {[%emt 0:00:16][%cal Bc3b5,Bb5d6,Bd6e8][%mdl 32]} Qd8 {[%emt 0:00:40][%cal Od7c5]} 22. Nd6 {[%emt 0:00:32][%csl LRb7,LRe8]} Rxe3 {[%emt 0:00:48]} 23. Rxe3 {[%emt 0:00:17] [#] Threatens to win with Re8+.} Bh6 $2 {[%emt 0:01:05]} (23... Qg5) 24. Re8+ {[%emt 0:00:24]} Qxe8 {[%emt 0:00:14]} 25. Nxe8 {[%emt 1:23:26] Black got outplayed after the opening.  Weighted Error Value: White=0.01 (flawless) /Black=0.43} 1-0

[Event "67th Mexican-ch Open 2022"]
[Site "Chihuahua"]
[Date "2022.04.13"]
[Round "1.3"]
[White "Ramirez Esqueda, Edson Oswaldo"]
[Black "Hernandez Guerrero, Gilberto"]
[Result "0-1"]
[ECO "B57"]
[WhiteElo "1931"]
[BlackElo "2564"]
[Annotator "TA"]
[PlyCount "92"]
[EventDate "2022.04.12"]
[EventType "swiss"]
[EventCountry "MEX"]
[SourceTitle "playchess.com"]
[Source "ChessBase"]
[SourceQuality "1"]
[TimeControl "5400+30"]

{[%evp 19,92,18,20,0,0,0,14,-24,0,-6,0,-5,0,-104,-104,-85,-107,-181,-185,-217,-195,-177,-185,-224,-236,-227,-243,-239,-227,-379,-356,-372,-370,-378,-371,-283,-305,-1275,-846,-845,-830,-941,-550,-985,-549,-518,-405,-564,-557,-560,-556,-566,-553,-543,-542,-567,-558,-533,-527,-631,-609,-739,-654,-818,-804,-818,-808,-890,-852,-29982,-29983,-29976,-1283,-29973,-2229]} 1. e4 {[%emt 0:00:03]} c5 {[%emt 0:07:03]} 2. Nf3 {[%emt 0:00:06]} Nc6 {[%emt 0:00:16]} 3. d4 {[%emt 0:00:11]} cxd4 {[%emt 0:00:38]} 4. Nxd4 {[%emt 0:00:07]} Nf6 {[%emt 0:00:06]} 5. Nc3 {[%emt 0:00:07]} d6 {[%emt 0:00:07]} 6. Bc4 {[%emt 0:00:40]} Qb6 {[%emt 0:01:19]} 7. Nb3 {[%emt 0:04:31]} e6 {[%emt 0:00:11]} 8. O-O {[%emt 0:00:59]} Be7 {[%emt 0:00:37]} 9. Be3 {[%emt 0:02:06]} Qc7 {[%emt 0:00:17]} 10. f4 {[%emt 0:02:26]} O-O {[%emt 0:02:42][%cal Od6d5]} 11. Nb5 {[%emt 0:03:23] B57: Classical Sicilian: Sozin with 6...Qb6.} Qb8 {[%emt 0:00:25]} 12. Qf3 {[%emt 0:00:14] [#]} a6 $146 {[%emt 0:05:29][%cal Ba7a6,Ba6a5,Ba5a4][%mdl 32]} ({Predecessor:} 12... Nb4 13. Bd3 Bd7 14. N5d4 g6 15. Bd2 Nxd3 16. cxd3 Qd8 17. Ba5 b6 18. Bc3 a5 {0-1 (58) Van Riemsdijk,H (2335)-Ivanov,A (2420) Philadelphia 1988}) 13. N5d4 {[%emt 0:00:41] The position is equal.} Bd7 {[%emt 0:05:58]} (13... Nxd4 {seems wilder.} 14. Nxd4 e5 15. Nf5 Bxf5 16. exf5 e4) 14. Bd3 {[%emt 0:05:22]} a5 {[%emt 0:02:15]} 15. g4 {[%emt 0:03:14]} a4 {[%emt 0:00:24]} 16. Nd2 {[%emt 0:01:02]} (16. Nxc6 $1 $11 bxc6 17. Nd2) 16... Nxd4 $17 {[%emt 0:00:39]} 17. Bxd4 {[%emt 0:00:07]} e5 {[%emt 0:00:13]} 18. fxe5 {[%emt 0:02:49]} (18. g5 $17 exd4 19. gxf6 Bxf6 20. a3) 18... dxe5 $19 {[%emt 0:00:22]} 19. Bc3 {[%emt 0:01:33]} Nxg4 {[%emt 0:01:11] Strongly threatening ...b5.} ({Stronger than} 19... Bxg4 20. Qg3 $15) 20. h3 {[%emt 0:04:35] [#]} b5 $1 {[%emt 0:01:13][%cal Oa8a6]} 21. a3 {[%emt 0:02:29]} (21. hxg4 b4) 21... Qb6+ {[%emt 0:09:07]} 22. Kh1 {[%emt 0:06:00]} Qh6 {[%emt 0:00:32]} 23. Rg1 {[%emt 0:01:41]} Bg5 {[%emt 0:00:42]} 24. Rg2 {[%emt 0:04:20]} (24. Rxg4 Bxg4 25. Qxg4 Bxd2 26. Bxe5) 24... Ra6 {[%emt 0:02:17][%cal Ba8a6,Ba6g6,Bg6e6][%mdl 32] [#] Threatens to win with ...Rf6.} ({Worse is} 24... Ne3 25. Rxg5 Qxg5 26. Rg1 $11) 25. Rxg4 {[%emt 0:21:32]} Bxg4 {[%emt 0:04:20]} 26. Qxg4 {[%emt 0:00:08] And now Nf3 would win.} Bxd2 {[%emt 0:00:09]} 27. Bxe5 {[%emt 0:00:08]} Rg6 {[%emt 0:00:47]} 28. Qd7 {[%emt 0:01:17]} (28. Qf3) 28... Re6 {[%emt 0:00:56]} 29. Bh2 {[%emt 0:03:38]} Qxh3 {[%emt 0:01:16] ( -> ...Qf3+)} 30. Rf1 {[%emt 0:02:02] Prevents Qf3+.} Qh4 {[%emt 0:05:59] Hoping for ...Rh6.} 31. Qxb5 {[%emt 0:04:00]} Rxe4 {[%emt 0:00:56]} 32. Qf5 {[%emt 0:03:22]} Re1 {[%emt 0:00:17]} 33. Kg2 {[%emt 0:02:23]} Rxf1 {[%emt 0:00:20]} 34. Bxf1 {[%emt 0:00:15]} g6 {[%emt 0:00:23]} 35. Qe5 {[%emt 0:00:59]} Bh6 {[%emt 0:01:09]} 36. Bg3 {[%emt 0:01:26]} Qg4 {[%emt 0:01:45]} 37. Be2 {[%emt 0:00:41]} Qc8 {[%emt 0:01:38]} 38. Bd3 {[%emt 0:00:49]} Bg7 {[%emt 0:01:30]} 39. Qb5 {[%emt 0:00:16]} Qg4 {[%emt 0:02:48]} 40. Kh2 {[%emt 0:03:04]} h5 {[%emt 0:01:00]} 41. Be2 {[%emt 0:01:37]} Qd4 {[%emt 0:01:14] ...h4 is the strong threat.} 42. c3 {[%emt 0:00:31]} Qd2 {[%emt 0:01:01] aiming for ...Rd8.} 43. Kh3 {[%emt 0:00:22]} Rd8 {[%emt 0:01:07]} 44. Bc4 {[%emt 0:01:44]} Qd1 {[%emt 0:00:35]} 45. Be2 {[%emt 0:03:49]} Qh1+ {[%emt 0:00:25]} 46. Bh2 {[%emt 0:00:09]} Bf8 {White did not feel at home in the position after the opening.  Weighted Error Value: White=0.75/Black=0.55} 0-1

[Event "67th Mexican-ch Open 2022"]
[Site "Chihuahua"]
[Date "2022.04.13"]
[Round "1.4"]
[White "Cordova, Emilio"]
[Black "Guerrero Cataldo, Juan Andres"]
[Result "1-0"]
[ECO "A15"]
[WhiteElo "2534"]
[BlackElo "1976"]
[Annotator "TA"]
[PlyCount "69"]
[EventDate "2022.04.12"]
[EventType "swiss"]
[EventCountry "MEX"]
[SourceTitle "playchess.com"]
[Source "ChessBase"]
[SourceQuality "1"]
[TimeControl "5400+30"]

{[%evp 13,69,11,10,0,0,0,0,0,33,21,40,29,31,34,39,25,19,32,20,24,33,6,41,41,35,29,59,59,59,59,56,45,66,62,123,131,131,131,127,131,127,119,145,145,179,189,188,174,170,147,254,254,360,371,356,332,323,203]} 1. Nf3 {[%emt 0:03:39]} Nf6 {[%emt 0:00:24]} 2. e3 {[%emt 0:00:30]} g6 {[%emt 0:00:20]} 3. b4 {[%emt 0:00:27]} Bg7 {[%emt 0:00:18]} 4. Bb2 {[%emt 0:00:07]} d6 {[%emt 0:00:28]} 5. c4 {[%emt 0:00:47]} O-O {[%emt 0:00:55]} 6. d4 {[%emt 0:00:53]} a5 {[%emt 0:04:21] 6...c5 is a critical line.} 7. b5 {[%emt 0:00:30]} Nbd7 {[%emt 0:00:33][%cal Oe7e5,Bb8d7,Bd7e5,Be5g4][%mdl 32]} 8. Nc3 {[%emt 0:04:49] A15: English Opening: 1...Nf6.} e5 {[%emt 0:03:19]} 9. Be2 {[%emt 0:00:32]} exd4 {[%emt 0:05:00]} 10. Nxd4 {[%emt 0:01:36] The position is equal.} Ne5 {[%emt 0:01:02]} 11. O-O {[%emt 0:00:19] [#]} Bg4 $146 {[%emt 0:09:11][%cal Oe5c4]} ({Predecessor:} 11... Be6 12. Nxe6 fxe6 13. Qc2 Qe7 14. Na4 Ned7 15. e4 Ne8 16. Bxg7 Nxg7 17. Rad1 b6 {0-1 (33) Egartner,W (2145)-Fellhauer,C Germany 1998}) 12. Bxg4 {[%emt 1:22:21]} Nexg4 {[%emt 1:10:39]} 13. Rc1 {[%emt 0:00:00]} Ne5 {[%emt 0:00:00]} 14. Qe2 {[%emt 0:00:00]} Ned7 {[%emt 0:00:00]} 15. Rfd1 {[%emt 0:01:30]} Qe7 16. Ba3 {[%emt 0:00:00]} Nc5 {[%emt 0:00:00]} 17. Qf3 {[%emt 0:00:00]} Rfe8 {[%emt 0:00:00]} 18. Bxc5 {[%emt 0:00:00]} dxc5 {[%emt 0:00:00]} 19. Nde2 {[%emt 0:00:00][%cal Bd4e2,Be2f4,Bf4d5][%mdl 32]} b6 {[%emt 0:00:00]} 20. Nf4 {[%emt 0:00:00]} Rac8 {[%emt 0:00:00]} 21. h3 {[%emt 0:00:00]} Qe5 {[%emt 0:00:00]} 22. Rd3 {[%emt 0:00:00]} g5 {[%emt 0:00:00]} 23. Nfd5 {[%emt 0:00:00] &Bianco is more active.} Ne4 {[%emt 0:00:00]} (23... h6 $14) 24. Nxe4 {[%emt 0:04:30]} Qxe4 {[%emt 0:00:00]} 25. Qxe4 {[%emt 0:00:00]} Rxe4 {[%emt 0:00:00]} 26. g4 {[%emt 0:00:00]} Re6 {[%emt 0:00:00]} 27. Kg2 {[%emt 0:00:00]} Be5 {[%emt 0:00:00]} 28. h4 {[%emt 0:00:00]} h6 {[%emt 0:00:00]} 29. Rh1 {[%emt 0:00:00]} Kg7 {[%emt 0:08:30]} 30. hxg5 {[%emt 0:00:00]} hxg5 {[%emt 0:00:30]} 31. Rh5 {[%emt 0:03:30]} f6 {[%emt 0:00:00]} (31... Bf6 $16 {was worth a try.} 32. Rd1 Rd8) 32. Rd1 $18 {[%emt 0:00:00] Hoping for Rdh1.} Rh8 {[%emt 0:01:00] [#]} (32... Rg8 {was necessary.} 33. Kf3 Kg6) 33. Nf4 $1 {[%mdl 512]} Rd6 34. Rxd6 Bxd6 35. Ne6+ {Weighted Error Value: White=0.02 (flawless) /Black=0.21 (precise)} 1-0

[Event "67th Mexican-ch Open 2022"]
[Site "Chihuahua"]
[Date "2022.04.13"]
[Round "1.5"]
[White "Flores Irurso, Paul Josue"]
[Black "Gonzalez Zamora, Juan Carlos"]
[Result "0-1"]
[ECO "B40"]
[WhiteElo "1912"]
[BlackElo "2544"]
[Annotator "TA"]
[PlyCount "108"]
[EventDate "2022.04.12"]
[EventType "swiss"]
[EventCountry "MEX"]
[SourceTitle "playchess.com"]
[Source "ChessBase"]
[SourceQuality "1"]
[TimeControl "5400+30"]

{[%evp 14,108,33,41,25,-14,26,-14,38,60,47,-25,-16,-14,-29,-24,-17,-37,0,0,0,0,0,0,0,0,0,-1,0,0,0,0,0,0,0,0,0,0,0,-5,0,0,0,0,0,0,10,-43,-29,-45,-35,-29,-25,-22,-12,-12,0,0,0,0,0,-152,-149,-142,-25,-36,-6,-32,-28,-37,0,0,-22,0,-58,-12845,-12845,-12845,-12846,-12846,-12847,-27999,-27999,-27999,-27999,-27999,-27999,-27999,-27999,-27999,-27999,-27999,-27999,-27997,-27997,-27998,-27998]} 1. e4 {[%emt 1:31:00]} c5 {[%emt 0:00:03]} 2. Nf3 {[%emt 0:00:00]} e6 {[%emt 0:00:54]} 3. d4 {[%emt 0:00:00]} cxd4 {[%emt 0:00:05]} 4. Nxd4 {[%emt 0:00:00]} Qb6 {[%emt 0:01:35]} 5. Nc3 {[%emt 0:00:00]} Bc5 {[%emt 0:00:15]} 6. Na4 {[%emt 0:00:00]} Qa5+ {[%emt 0:00:13]} 7. c3 {[%emt 0:00:00]} Bxd4 {[%emt 0:01:59]} 8. Qxd4 {[%emt 0:00:00]} Nf6 {[%emt 0:07:35] B40: Sicilian: 2...e6, Unusual lines.} 9. Be2 {[%emt 0:00:00] [#]} b6 $146 {[%emt 0:07:44]} (9... Nc6 $5 {[%cal Rc6d4]} 10. Qc4 d6 $11) ({Predecessor:} 9... Nc6 10. Qc4 d5 11. exd5 exd5 12. Qb5 Qxb5 13. Bxb5 O-O 14. O-O a6 15. Bd3 h6 {0-1 (42) Meng,Y (1548)-Wittmann,R (1971) Playchess.com INT 2020}) 10. O-O {[%emt 0:00:00]} Ba6 {[%emt 0:17:31]} ({Better is} 10... Nc6 $11 11. Qc4 Bb7) 11. Bxa6 $14 {[%emt 0:00:00]} Qxa6 {[%emt 0:01:29]} 12. f3 {[%emt 0:00:00]} (12. Re1 $14) 12... Nc6 $11 {[%emt 0:00:24]} 13. Qd1 {[%emt 0:00:00]} d5 $36 {[%emt 0:02:21][%mdl 2048] Black is pushing.} 14. Bg5 {[%emt 0:00:00]} O-O-O {[%emt 0:01:56]} 15. Qc2 {[%emt 0:00:00]} Kb7 {[%emt 0:07:51]} 16. b3 {[%emt 0:00:00]} Qb5 {[%emt 0:10:38]} 17. Bxf6 {[%emt 0:00:00]} gxf6 {[%emt 0:00:23]} 18. exd5 {[%emt 0:00:00]} Qxd5 {[%emt 0:00:41]} 19. Rad1 {[%emt 0:00:00] Inhibits Qd2.} Qe5 {[%emt 0:04:23]} 20. Nb2 {[%emt 0:00:00]} f5 {[%emt 0:03:50]} 21. Nc4 {[%emt 0:00:00]} Qc5+ {[%emt 0:00:15]} 22. Qf2 {[%emt 0:00:00]} Qxf2+ {[%emt 0:01:22]} 23. Kxf2 {[%emt 0:00:00]} Kc7 {[%emt 0:00:01] Against Nd6} 24. Rxd8 {[%emt 0:01:04]} Rxd8 {[%emt 0:00:08][%mdl 4096] Endgame KRN-KRN} 25. Ke2 {[%emt 0:00:03]} b5 {[%emt 0:00:28]} 26. Ne3 {[%emt 0:02:22]} h5 {[%emt 0:02:11]} 27. Rd1 {[%emt 0:01:29]} Rg8 {[%emt 0:01:28]} 28. g3 {[%emt 0:00:36]} a5 {[%emt 0:01:10]} 29. Ng2 {[%emt 0:02:17]} b4 {[%emt 0:00:37]} 30. c4 {[%emt 0:00:38]} (30. cxb4 $11 Nxb4 31. Rd2) 30... a4 {[%emt 0:00:38]} 31. Nf4 {[%emt 0:00:19]} axb3 {[%emt 0:00:27]} 32. axb3 {[%emt 0:00:10]} Ra8 {[%emt 0:00:04]} 33. Nxh5 {[%emt 0:00:45]} Ra2+ {[%emt 0:00:05]} 34. Rd2 $1 {[%emt 0:00:34]} Nd4+ {[%emt 0:00:11]} 35. Kd3 {[%emt 0:00:38]} Rxd2+ {[%emt 0:00:16]} 36. Kxd2 {[%emt 0:00:05]} Nxf3+ {[%emt 0:07:24] KN-KN} 37. Ke3 $2 {[%emt 0:00:06]} (37. Kd3 $11) 37... Nxh2 $17 {[%emt 0:00:47]} 38. Kd4 {[%emt 0:01:09] [#]} Kc6 {[%emt 0:00:31]} (38... Kb6 $1 $17 {Hoping for ...Ng4.} 39. Nf4 Nf3+ 40. Ke3 Ne5) 39. Nf4 $11 {[%emt 0:00:23]} Nf1 {[%emt 0:06:48]} 40. Nd3 {[%emt 0:00:51]} Nxg3 {[%emt 0:00:35] Strongly threatening ...Ne4.} 41. Nxb4+ {[%emt 0:00:27]} Kd7 {[%emt 0:00:21] ...f4 is the strong threat.} 42. Nd3 {[%emt 0:00:33]} f6 {[%emt 0:00:15][%cal Of5f4] [#] Threatens to win with ...f4!} 43. b4 {[%emt 0:02:59]} f4 {[%emt 0:01:54] White must now prevent ...e5+.} 44. Nxf4 $2 {[%emt 0:02:00][%mdl 8192] This costs White the game.} (44. b5 $15) 44... e5+ $19 {[%emt 0:00:46]} 45. Ke3 {[%emt 0:00:05]} Nf5+ {[%emt 0:02:34]} 46. Kf3 {[%emt 0:00:54]} exf4 {[%emt 0:01:09]} 47. Kxf4 {[%emt 0:00:02] KN-KPP} Nd6 {[%emt 0:01:45] Black mates.} 48. c5 {[%emt 0:01:05]} Nb5 {[%emt 0:00:07]} 49. Kf5 {[%emt 0:00:03]} Ke7 {[%emt 0:00:10]} 50. Ke4 {[%emt 0:00:56]} Ke6 {[%emt 0:00:07]} 51. Kd3 {[%emt 0:00:45]} Kd5 {[%emt 0:00:33]} 52. Ke3 {[%emt 0:00:04]} f5 {[%emt 0:00:57]} 53. c6 {[%emt 0:01:42]} Kxc6 {[%emt 0:01:23]} 54. Kf4 {[%emt 0:00:08]} Nd6 {[%emt 0:00:04] Weighted Error Value: White=0.37/Black=0.14 (very precise)} 0-1

[Event "67th Mexican-ch Open 2022"]
[Site "Chihuahua"]
[Date "2022.04.13"]
[Round "1.6"]
[White "Obregon Rivero, Juan Carlos"]
[Black "Sierra Arballo, Jesus"]
[Result "1-0"]
[ECO "C84"]
[WhiteElo "2536"]
[BlackElo "1916"]
[Annotator "TA"]
[PlyCount "77"]
[EventDate "2022.04.12"]
[EventType "swiss"]
[EventCountry "MEX"]
[SourceTitle "playchess.com"]
[Source "ChessBase"]
[SourceQuality "1"]
[TimeControl "5400+30"]

{[%evp 19,77,20,25,15,60,42,66,52,69,53,51,52,62,51,59,49,46,19,21,12,18,18,29,19,56,9,43,43,44,13,20,20,20,20,20,20,20,16,17,9,20,16,0,0,116,64,62,45,135,87,87,60,733,728,805,775,1989,1811,1637,1429]} 1. e4 {[%emt 0:10:28]} e5 {[%emt 0:00:30]} 2. Nf3 {[%emt 0:00:08]} Nc6 {[%emt 0:00:08]} 3. Bb5 {[%emt 0:00:09][%cal Bf1b5,Bb5a4,Ba4b3][%mdl 32]} a6 {[%emt 0:00:17]} 4. Ba4 {[%emt 0:00:06]} Nf6 {[%emt 0:00:06]} 5. O-O {[%emt 0:01:14]} Be7 {[%emt 0:00:26]} 6. d3 {[%emt 0:01:03]} b5 {[%emt 0:01:09]} 7. Bb3 {[%emt 0:00:02]} d6 {[%emt 0:07:10]} 8. a4 {[%emt 0:03:48]} Rb8 {[%emt 0:05:45]} 9. axb5 {[%emt 0:03:10]} axb5 {[%emt 0:00:16]} 10. Nc3 {[%emt 0:01:17]} O-O {[%emt 0:13:25] 10...Bg4 is more advanced technology.} 11. Nd5 {[%emt 0:01:22] C84: Closed Ruy Lopez: Unusual White 6th moves.} Bg4 {[%emt 0:04:17]} 12. c3 {[%emt 0:00:47]} Qd7 {[%emt 0:11:51]} 13. h3 {[%emt 0:01:24] White is slightly better.} Bh5 {[%emt 0:05:46] [#]} 14. g4 $146 {[%emt 0:08:49] &Bianco is more active.} ({Predecessor:} 14. Ra6 Bd8 15. Be3 Kh8 16. Re1 Qe8 17. Kh2 Nxd5 18. Bxd5 Ne7 19. Ba7 Nxd5 20. Bxb8 {1-0 (46) Libiszewski,F (2505)-Bujisho,B (2391) Pau 2012}) 14... Bg6 {[%emt 0:07:25]} 15. Nh4 {[%emt 0:21:24]} Nxd5 {[%emt 0:11:31]} 16. Nxg6 {[%emt 0:00:08]} fxg6 {[%emt 0:00:12]} 17. Bxd5+ {[%emt 0:02:10]} (17. Kg2 {is more complex.} Kh8 18. Bxd5 g5 19. Be3) 17... Kh8 {[%emt 0:01:03]} 18. f4 {[%emt 0:00:30]} exf4 {[%emt 0:04:41]} 19. Bxf4 {[%emt 0:00:49]} Bh4 {[%emt 0:05:40] Against Bg3} 20. Be3 {[%emt 0:07:00]} Ne5 {[%emt 0:11:28]} 21. Qe2 {[%emt 0:02:27]} g5 {[%emt 0:00:35]} 22. Rxf8+ {[%emt 0:07:01]} Rxf8 {[%emt 0:00:08]} 23. Rf1 {[%emt 0:00:18][%cal Rf1f8]} Rf6 {[%emt 0:04:39]} 24. Rxf6 $40 {[%emt 0:13:36][%mdl 128] White has some attack.} gxf6 {[%emt 0:00:04]} 25. Qf1 {[%emt 0:01:23]} Kg7 {[%emt 0:01:12]} 26. d4 {[%emt 0:01:36]} Ng6 {[%emt 0:02:19]} 27. Qf5 {[%emt 0:02:19]} Qxf5 {[%emt 0:00:26]} 28. exf5 $11 {[%emt 0:00:42][%mdl 4096] Endgame KBB-KBN} Nf4 {[%emt 0:00:52]} 29. Bc6 {[%emt 0:00:44]} Nxh3+ {[%emt 0:00:32]} 30. Kg2 {[%emt 0:02:28]} Nf4+ {[%emt 0:00:11]} 31. Kf3 {[%emt 0:00:14]} Nh3 {[%emt 0:00:59]} (31... b4 $11 {keeps the balance.}) 32. Bxb5 {[%emt 0:00:19]} ({White should try} 32. Bd2 $1 $16) 32... Be1 $1 $14 {[%emt 0:00:33]} 33. c4 {[%emt 0:02:12]} Bh4 {[%emt 0:00:44]} (33... Nf4 $14) 34. c5 {[%emt 0:00:45]} ({Better is} 34. Bd2 $1) 34... Be1 $16 {[%emt 0:00:28]} 35. d5 {[%emt 0:05:10] c6 is the strong threat.} Bb4 $2 {[%emt 0:00:15][%mdl 8192] [#] Black cannot hold the game after this.} (35... Kf8 $14) 36. c6 $1 $18 {[%emt 0:00:15][%cal Oe3b6] White is clearly winning.} Nf4 {[%emt 0:00:16]} 37. Bc4 {[%emt 0:00:09][%cal Oe3b6] aiming for Bb6!} Ba5 {[%emt 0:01:02] Against Bb6} 38. b4 {[%emt 0:00:19]} Bxb4 {[%emt 0:00:12] [#]} 39. Bb6 $1 {[%emt 0:02:15][%mdl 512] Weighted Error Value: White=0.13 (very precise) /Black=0.24 (precise)} 1-0